[Event "Late-Titled-Tuesday-Blitz-May-14-2024"]
[Site "Chess.com"]
[Date "2024.05.14"]
[Round "11"]
[White "ReadySkate"]
[Black "kingofthenil"]
[Result "0-1"]
[WhiteElo "2748"]
[BlackElo "2892"]
[TimeControl "180+1"]
[EndTime "16:05:20 PDT"]
[Termination "kingofthenil won by resignation"]

1. d4 {[%clk 0:03:00.9]} 1... d6 {[%clk 0:02:59]} 2. c4 {[%clk 0:03:01.2]} 2...
e5 {[%clk 0:02:59]} 3. d5 {[%clk 0:03:01.3]} 3... e4 {[%clk 0:02:53.1]} 4. Nc3
{[%clk 0:03:01.3]} 4... f5 {[%clk 0:02:52.6]} 5. g3 {[%clk 0:02:59.1]} 5... g6
{[%clk 0:02:50.2]} 6. f3 {[%clk 0:02:58.2]} 6... exf3 {[%clk 0:02:45.9]} 7. Nxf3
{[%clk 0:02:59.1]} 7... Nf6 {[%clk 0:02:45.5]} 8. Bg2 {[%clk 0:02:59.6]} 8...
Bg7 {[%clk 0:02:45.2]} 9. O-O {[%clk 0:02:59.5]} 9... O-O {[%clk 0:02:45.4]} 10.
e4 {[%clk 0:02:59.9]} 10... Na6 {[%clk 0:02:27.2]} 11. Nd4 {[%clk 0:02:58.2]}
11... Nxe4 {[%clk 0:02:23.4]} 12. Nxe4 {[%clk 0:02:55.8]} 12... fxe4 {[%clk
0:02:24.3]} 13. Rxf8+ {[%clk 0:02:51.7]} 13... Qxf8 {[%clk 0:02:25.2]} 14. Bxe4
{[%clk 0:02:51]} 14... Nc5 {[%clk 0:01:51.8]} 15. Bg2 {[%clk 0:02:49]} 15... Bd7
{[%clk 0:01:46.2]} 16. b4 {[%clk 0:02:47.6]} 16... Re8 {[%clk 0:01:36.9]} 17.
Bf4 {[%clk 0:02:38.2]} 17... Ne4 {[%clk 0:01:26]} 18. Rc1 {[%clk 0:02:31.3]}
18... g5 {[%clk 0:01:26]} 19. Be3 {[%clk 0:02:21.2]} 19... Nxg3 {[%clk
0:01:24.9]} 20. Ne6 {[%clk 0:02:06.3]} 20... Bxe6 {[%clk 0:01:15.4]} 21. dxe6
{[%clk 0:02:06.6]} 21... Nf5 {[%clk 0:01:10]} 22. Bxg5 {[%clk 0:02:05.3]} 22...
c6 {[%clk 0:01:10.4]} 23. Qg4 {[%clk 0:02:01.2]} 23... Rxe6 {[%clk 0:00:36.6]}
24. Rf1 {[%clk 0:01:59.2]} 24... Re5 {[%clk 0:00:37.1]} 25. Bh3 {[%clk 0:01:51]}
25... h5 {[%clk 0:00:25.9]} 26. Qxh5 {[%clk 0:01:33.4]} 26... d5 {[%clk
0:00:15.7]} 27. cxd5 {[%clk 0:01:31.2]} 27... Qxb4 {[%clk 0:00:14]} 28. Bxf5
{[%clk 0:01:24.6]} 28... Qd4+ {[%clk 0:00:13.9]} 29. Kg2 {[%clk 0:01:04.7]}
29... Qxd5+ {[%clk 0:00:13.7]} 30. Kg3 {[%clk 0:00:57.7]} 30... Rxf5 {[%clk
0:00:12.6]} 31. Qe8+ {[%clk 0:00:49.8]} 31... Rf8 {[%clk 0:00:05.3]} 32. Rxf8+
{[%clk 0:00:48.5]} 32... Bxf8 {[%clk 0:00:06.2]} 33. Qg6+ {[%clk 0:00:48.1]}
33... Bg7 {[%clk 0:00:06.7]} 34. h4 {[%clk 0:00:42.2]} 34... Qf7 {[%clk
0:00:04.1]} 35. Qe4 {[%clk 0:00:35]} 35... Qc7+ {[%clk 0:00:01.6]} 36. Bf4
{[%clk 0:00:32.9]} 36... Qd7 {[%clk 0:00:01.9]} 37. h5 {[%clk 0:00:31.8]} 37...
Qf7 {[%clk 0:00:01.7]} 38. h6 {[%clk 0:00:30.6]} 38... Bf6 {[%clk 0:00:02]} 39.
Kg4 {[%clk 0:00:26.1]} 39... Be7 {[%clk 0:00:02.1]} 40. Qd3 {[%clk 0:00:14.4]}
40... Bf8 {[%clk 0:00:01.6]} 41. Bg5 {[%clk 0:00:10]} 41... Qe6+ {[%clk
0:00:01.7]} 42. Kh4 {[%clk 0:00:09.6]} 42... Bd6 {[%clk 0:00:01.4]} 43. h7+
{[%clk 0:00:09.4]} 43... Kh8 {[%clk 0:00:02]} 44. Qf3 {[%clk 0:00:07.4]} 44...
Kxh7 {[%clk 0:00:01.7]} 45. Qd3+ {[%clk 0:00:06.9]} 45... Kg8 {[%clk 0:00:01.2]}
46. Qf3 {[%clk 0:00:07.1]} 46... Qf7 {[%clk 0:00:00.8]} 47. Qe4 {[%clk 0:00:06]}
47... Bf8 {[%clk 0:00:01.2]} 48. Kg3 {[%clk 0:00:04.7]} 48... Qg7 {[%clk
0:00:01.1]} 49. Kf4 {[%clk 0:00:03.6]} 49... Bd6+ {[%clk 0:00:01.5]} 50. Kf5
{[%clk 0:00:03.6]} 50... Qf7+ {[%clk 0:00:02.2]} 51. Kg4 {[%clk 0:00:03.8]}
51... Bf8 {[%clk 0:00:02.3]} 52. Qd3 {[%clk 0:00:02.9]} 52... Bg7 {[%clk
0:00:03.2]} 53. Qe4 {[%clk 0:00:03]} 53... Qd7+ {[%clk 0:00:02.6]} 54. Kh4
{[%clk 0:00:03.4]} 54... Qf7 {[%clk 0:00:02.7]} 55. Kg3 {[%clk 0:00:03.2]} 55...
c5 {[%clk 0:00:02.8]} 56. Qf3 {[%clk 0:00:02.2]} 56... Qxf3+ {[%clk 0:00:02.5]}
57. Kxf3 {[%clk 0:00:03.1]} 57... Kf7 {[%clk 0:00:03.1]} 58. Ke4 {[%clk
0:00:04]} 58... Ke6 {[%clk 0:00:03.6]} 59. Be3 {[%clk 0:00:04]} 59... b6 {[%clk
0:00:03.6]} 60. Bd2 {[%clk 0:00:04.3]} 60... Be5 {[%clk 0:00:03.7]} 61. Be3
{[%clk 0:00:04.3]} 61... Bc7 {[%clk 0:00:04.1]} 62. Bg5 {[%clk 0:00:04.7]} 62...
Kd6 {[%clk 0:00:04.6]} 63. Bf4+ {[%clk 0:00:04.4]} 63... Kc6 {[%clk 0:00:05.1]}
64. Be3 {[%clk 0:00:05.3]} 64... b5 {[%clk 0:00:05.2]} 65. Bf2 {[%clk
0:00:05.1]} 65... Bb6 {[%clk 0:00:05.8]} 66. Be3 {[%clk 0:00:04.9]} 66... c4
{[%clk 0:00:06.4]} 67. Bd2 {[%clk 0:00:05.5]} 67... Kc5 {[%clk 0:00:06.8]} 68.
Be3+ {[%clk 0:00:05.2]} 68... Kb4 {[%clk 0:00:07.1]} 69. Bd2+ {[%clk 0:00:05.7]}
69... Ka3 {[%clk 0:00:07.2]} 70. Bf4 {[%clk 0:00:05]} 70... Kxa2 {[%clk
0:00:07.3]} 71. Kd5 {[%clk 0:00:05.6]} 71... Kb3 {[%clk 0:00:07.5]} 72. Kc6
{[%clk 0:00:06]} 72... b4 {[%clk 0:00:07.4]} 0-1

[Event "Late-Titled-Tuesday-Blitz-May-14-2024"]
[Site "Chess.com"]
[Date "2024.05.14"]
[Round "11"]
[White "campochess"]
[Black "MarceloPlaya"]
[Result "0-1"]
[WhiteElo "2128"]
[BlackElo "2332"]
[TimeControl "180+1"]
[EndTime "16:05:23 PDT"]
[Termination "MarceloPlaya won on time"]

1. e4 {[%clk 0:02:55]} 1... e6 {[%clk 0:03:00.6]} 2. Qe2 {[%clk 0:02:54.2]} 2...
Be7 {[%clk 0:02:59.4]} 3. d4 {[%clk 0:02:54.1]} 3... d5 {[%clk 0:02:59.6]} 4.
exd5 {[%clk 0:02:53.3]} 4... exd5 {[%clk 0:02:59]} 5. c4 {[%clk 0:02:52.5]} 5...
Nf6 {[%clk 0:02:58.7]} 6. Nc3 {[%clk 0:02:51.9]} 6... O-O {[%clk 0:02:58.4]} 7.
Be3 {[%clk 0:02:51.8]} 7... a5 {[%clk 0:02:54.7]} 8. Nf3 {[%clk 0:02:51.4]} 8...
Bb4 {[%clk 0:02:51.2]} 9. Qc2 {[%clk 0:02:51.1]} 9... Ne4 {[%clk 0:02:48.1]} 10.
Bd3 {[%clk 0:02:49.5]} 10... f5 {[%clk 0:02:37.5]} 11. cxd5 {[%clk 0:02:48.3]}
11... Qxd5 {[%clk 0:02:33.1]} 12. O-O {[%clk 0:02:47.9]} 12... Bxc3 {[%clk
0:02:02.6]} 13. bxc3 {[%clk 0:02:47]} 13... Kh8 {[%clk 0:01:59.2]} 14. Ne5
{[%clk 0:02:46.5]} 14... Nc6 {[%clk 0:01:53.8]} 15. Nxc6 {[%clk 0:02:31.2]}
15... Qxc6 {[%clk 0:01:51.3]} 16. Rac1 {[%clk 0:02:30.2]} 16... Be6 {[%clk
0:01:48.5]} 17. f3 {[%clk 0:02:29.9]} 17... Nd6 {[%clk 0:01:46.2]} 18. c4 {[%clk
0:02:29.5]} 18... Qd7 {[%clk 0:01:34.3]} 19. d5 {[%clk 0:02:29.6]} 19... Bg8
{[%clk 0:01:32.8]} 20. c5 {[%clk 0:02:28.2]} 20... Ne8 {[%clk 0:01:31.1]} 21. c6
{[%clk 0:02:15.2]} 21... bxc6 {[%clk 0:01:30.4]} 22. dxc6 {[%clk 0:02:11.8]}
22... Qe6 {[%clk 0:01:24.7]} 23. Bd4 {[%clk 0:02:09.2]} 23... Qxa2 {[%clk
0:01:18.9]} 24. Qc5 {[%clk 0:02:08.7]} 24... Qd5 {[%clk 0:01:14.6]} 25. Qc3
{[%clk 0:01:53.6]} 25... Nf6 {[%clk 0:01:11.2]} 26. Bc5 {[%clk 0:01:45.8]} 26...
Rfd8 {[%clk 0:01:06]} 27. Bb5 {[%clk 0:01:45.7]} 27... a4 {[%clk 0:01:01.8]} 28.
Be7 {[%clk 0:01:39.4]} 28... Qd4+ {[%clk 0:00:49.1]} 29. Qxd4 {[%clk 0:01:35.9]}
29... Rxd4 {[%clk 0:00:49]} 30. Bxf6 {[%clk 0:01:36]} 30... gxf6 {[%clk
0:00:48.5]} 31. Rfe1 {[%clk 0:01:13.6]} 31... a3 {[%clk 0:00:47.4]} 32. Re7
{[%clk 0:01:12.8]} 32... a2 {[%clk 0:00:45.6]} 33. Rxc7 {[%clk 0:01:12.7]} 33...
a1=Q {[%clk 0:00:42.4]} 34. Rxa1 {[%clk 0:01:12.6]} 34... Rxa1+ {[%clk
0:00:41.3]} 35. Kf2 {[%clk 0:01:12.7]} 35... Rb4 {[%clk 0:00:37.6]} 36. Rb7
{[%clk 0:01:11.3]} 36... Rc1 {[%clk 0:00:34.2]} 37. c7 {[%clk 0:01:09.1]} 37...
Rxb5 {[%clk 0:00:33.1]} 38. Rxb5 {[%clk 0:01:08.4]} 38... Rxc7 {[%clk
0:00:32.9]} 39. Rxf5 {[%clk 0:01:08.2]} 39... Kg7 {[%clk 0:00:32.9]} 40. g4
{[%clk 0:01:06.8]} 40... Kg6 {[%clk 0:00:32.6]} 41. h4 {[%clk 0:01:06.6]} 41...
h6 {[%clk 0:00:30.9]} 42. Kg3 {[%clk 0:01:03.9]} 42... Rc3 {[%clk 0:00:29.8]}
43. Ra5 {[%clk 0:01:00.7]} 43... Be6 {[%clk 0:00:28.9]} 44. h5+ {[%clk
0:00:59.1]} 44... Kg7 {[%clk 0:00:28.7]} 45. Ra7+ {[%clk 0:00:58.6]} 45... Bf7
{[%clk 0:00:28.1]} 46. Kf4 {[%clk 0:00:57.6]} 46... Rc4+ {[%clk 0:00:26.8]} 47.
Kf5 {[%clk 0:00:51.5]} 47... Rc5+ {[%clk 0:00:26.4]} 48. Kf4 {[%clk 0:00:51.6]}
48... Re5 {[%clk 0:00:26.4]} 49. Rc7 {[%clk 0:00:48.9]} 49... Kf8 {[%clk
0:00:25.8]} 50. Ra7 {[%clk 0:00:47.1]} 50... Re7 {[%clk 0:00:25.2]} 51. Ra6
{[%clk 0:00:42.9]} 51... Be6 {[%clk 0:00:24.9]} 52. Rb6 {[%clk 0:00:39.6]} 52...
Kf7 {[%clk 0:00:24.8]} 53. Rd6 {[%clk 0:00:38.3]} 53... Rd7 {[%clk 0:00:24.5]}
54. Rb6 {[%clk 0:00:37.9]} 54... Rd4+ {[%clk 0:00:23.5]} 55. Kg3 {[%clk
0:00:37.4]} 55... Bd5 {[%clk 0:00:22.5]} 56. Ra6 {[%clk 0:00:31]} 56... Rd3
{[%clk 0:00:21.5]} 57. Ra7+ {[%clk 0:00:30.9]} 57... Kg8 {[%clk 0:00:19.6]} 58.
Rd7 {[%clk 0:00:26.7]} 58... Rxf3+ {[%clk 0:00:18.8]} 59. Kh4 {[%clk 0:00:26.8]}
59... Rd3 {[%clk 0:00:18.6]} 60. Rd6 {[%clk 0:00:23.3]} 60... Kf7 {[%clk
0:00:18.1]} 61. Rd7+ {[%clk 0:00:22.9]} 61... Ke8 {[%clk 0:00:17.8]} 62. Rh7
{[%clk 0:00:20.9]} 62... Bg2 {[%clk 0:00:17.4]} 63. g5 {[%clk 0:00:18.8]} 63...
fxg5+ {[%clk 0:00:16.9]} 64. Kg4 {[%clk 0:00:18.9]} 64... Rd4+ {[%clk
0:00:17.1]} 65. Kg3 {[%clk 0:00:18.5]} 65... Be4 {[%clk 0:00:15.7]} 66. Rxh6
{[%clk 0:00:18.5]} 66... Kf7 {[%clk 0:00:15.7]} 67. Ra6 {[%clk 0:00:15.2]} 67...
Bf5 {[%clk 0:00:14.9]} 68. Rb6 {[%clk 0:00:10.6]} 68... Be6 {[%clk 0:00:13.9]}
69. h6 {[%clk 0:00:09.7]} 69... Rh4 {[%clk 0:00:13.4]} 70. h7 {[%clk 0:00:03.8]}
70... Rh3+ {[%clk 0:00:12.7]} 71. Kg2 {[%clk 0:00:03.1]} 71... Rxh7 {[%clk
0:00:12.8]} 72. Kg3 {[%clk 0:00:01.6]} 72... Rh4 {[%clk 0:00:12.8]} 0-1

[Event "Late-Titled-Tuesday-Blitz-May-14-2024"]
[Site "Chess.com"]
[Date "2024.05.14"]
[Round "11"]
[White "DeArron_Fox"]
[Black "Kombinator01"]
[Result "0-1"]
[WhiteElo "2539"]
[BlackElo "2411"]
[TimeControl "180+1"]
[EndTime "16:06:41 PDT"]
[Termination "Kombinator01 won by checkmate"]

1. d4 {[%clk 0:03:00.9]} 1... Nf6 {[%clk 0:02:48.8]} 2. c4 {[%clk 0:03:00.9]}
2... Nc6 {[%clk 0:02:48.7]} 3. Nf3 {[%clk 0:03:00]} 3... d5 {[%clk 0:02:46.6]}
4. cxd5 {[%clk 0:02:56.8]} 4... Qxd5 {[%clk 0:02:46.4]} 5. Nc3 {[%clk
0:02:56.6]} 5... Qh5 {[%clk 0:02:46.4]} 6. Bf4 {[%clk 0:01:43.9]} 6... Nd5
{[%clk 0:02:41]} 7. Bg3 {[%clk 0:01:30.6]} 7... Nxc3 {[%clk 0:02:35.8]} 8. bxc3
{[%clk 0:01:30.4]} 8... Qa5 {[%clk 0:02:36.4]} 9. Qb3 {[%clk 0:01:17.2]} 9... e6
{[%clk 0:02:30.1]} 10. e4 {[%clk 0:01:07.3]} 10... Bd6 {[%clk 0:02:28.5]} 11. e5
{[%clk 0:00:58.1]} 11... Be7 {[%clk 0:02:23.1]} 12. Bd3 {[%clk 0:00:57.8]} 12...
Qb6 {[%clk 0:02:11.8]} 13. Qc2 {[%clk 0:00:41.5]} 13... a6 {[%clk 0:02:08.4]}
14. h4 {[%clk 0:00:36.3]} 14... Qa7 {[%clk 0:02:06.3]} 15. Be4 {[%clk 0:00:18]}
15... h6 {[%clk 0:02:05.2]} 16. Rb1 {[%clk 0:00:16.8]} 16... Bd7 {[%clk
0:02:04.3]} 17. h5 {[%clk 0:00:14.9]} 17... Rd8 {[%clk 0:02:01.7]} 18. Bh4
{[%clk 0:00:13.8]} 18... b5 {[%clk 0:02:01.3]} 19. Bxe7 {[%clk 0:00:12.3]} 19...
Nxe7 {[%clk 0:02:01.4]} 20. a4 {[%clk 0:00:07.6]} 20... c5 {[%clk 0:02:01.1]}
21. axb5 {[%clk 0:00:07.1]} 21... axb5 {[%clk 0:01:58.8]} 22. O-O {[%clk
0:00:06.5]} 22... O-O {[%clk 0:01:53.4]} 23. Rfd1 {[%clk 0:00:04.9]} 23... Rc8
{[%clk 0:01:52.8]} 24. Qe2 {[%clk 0:00:04]} 24... c4 {[%clk 0:01:49.9]} 25. Bc2
{[%clk 0:00:04]} 25... Bc6 {[%clk 0:01:49.2]} 26. Nd2 {[%clk 0:00:03.6]} 26...
Rfd8 {[%clk 0:01:45.8]} 27. Ne4 {[%clk 0:00:04.2]} 27... Qa8 {[%clk 0:01:43.4]}
28. Nd6 {[%clk 0:00:03.3]} 28... Bxg2 {[%clk 0:01:42.2]} 29. Nxc8 {[%clk
0:00:03.1]} 29... Rxc8 {[%clk 0:01:40.5]} 30. Rxb5 {[%clk 0:00:03.5]} 30... Bf3
{[%clk 0:01:40.1]} 31. Qe3 {[%clk 0:00:02.6]} 31... Bxd1 {[%clk 0:01:40.2]} 32.
Bxd1 {[%clk 0:00:03.5]} 32... Qa1 {[%clk 0:01:39.2]} 33. Qf3 {[%clk 0:00:02.6]}
33... Nd5 {[%clk 0:01:36.9]} 34. Kg2 {[%clk 0:00:02.2]} 34... Qxc3 {[%clk
0:01:36]} 35. Qxc3 {[%clk 0:00:01.9]} 35... Nxc3 {[%clk 0:01:36.3]} 36. Bc2
{[%clk 0:00:02.8]} 36... Nd5 {[%clk 0:01:35.7]} 37. Kf3 {[%clk 0:00:02.4]} 37...
c3 {[%clk 0:01:32.6]} 38. Rc5 {[%clk 0:00:02.8]} 38... Rxc5 {[%clk 0:01:31.2]}
39. dxc5 {[%clk 0:00:03.7]} 39... Kf8 {[%clk 0:01:31.3]} 40. Bb3 {[%clk
0:00:01.8]} 40... Ke7 {[%clk 0:01:30.6]} 41. Ke4 {[%clk 0:00:02.2]} 41... Kd7
{[%clk 0:01:28.8]} 42. Kd4 {[%clk 0:00:01.8]} 42... Kc6 {[%clk 0:01:28.4]} 43.
Ba4+ {[%clk 0:00:02.3]} 43... Kc7 {[%clk 0:01:28.1]} 44. Kd3 {[%clk 0:00:02.3]}
44... Nf4+ {[%clk 0:01:26.8]} 45. Kxc3 {[%clk 0:00:02.8]} 45... Nxh5 {[%clk
0:01:27.2]} 46. Kd4 {[%clk 0:00:03.1]} 46... Nf4 {[%clk 0:01:27.3]} 47. Ke4
{[%clk 0:00:02.3]} 47... Nd5 {[%clk 0:01:27.5]} 48. Be8 {[%clk 0:00:03]} 48...
f5+ {[%clk 0:01:23.8]} 49. Kd4 {[%clk 0:00:03.3]} 49... Ne7 {[%clk 0:01:22.6]}
50. Bf7 {[%clk 0:00:02.5]} 50... Nc6+ {[%clk 0:01:21.6]} 51. Ke3 {[%clk
0:00:01.6]} 51... Kd7 {[%clk 0:01:22]} 52. f4 {[%clk 0:00:01.3]} 52... Ke7
{[%clk 0:01:21.3]} 53. Bh5 {[%clk 0:00:01.6]} 53... g5 {[%clk 0:01:21.4]} 54.
fxg5 {[%clk 0:00:01.2]} 54... hxg5 {[%clk 0:01:21.7]} 55. Bf3 {[%clk 0:00:02.1]}
55... Nxe5 {[%clk 0:01:21.6]} 56. Bb7 {[%clk 0:00:01.8]} 56... Kd8 {[%clk
0:01:16.2]} 57. Kd4 {[%clk 0:00:02.1]} 57... Nf7 {[%clk 0:01:16.1]} 58. Bf3
{[%clk 0:00:01.1]} 58... Kc7 {[%clk 0:01:16]} 59. c6 {[%clk 0:00:00.6]} 59...
Kd6 {[%clk 0:01:15.6]} 60. Bh1 {[%clk 0:00:01.2]} 60... Nd8 {[%clk 0:01:13.9]}
61. Kc4 {[%clk 0:00:01]} 61... Nxc6 {[%clk 0:01:13.2]} 62. Kb5 {[%clk
0:00:01.9]} 62... Ne7 {[%clk 0:01:11.5]} 63. Kc4 {[%clk 0:00:02.8]} 63... e5
{[%clk 0:01:11.1]} 64. Kd3 {[%clk 0:00:03.2]} 64... g4 {[%clk 0:01:10.7]} 65.
Ke3 {[%clk 0:00:03.1]} 65... Ke6 {[%clk 0:01:10.6]} 66. Kf2 {[%clk 0:00:04]}
66... Kf6 {[%clk 0:01:09.9]} 67. Ba8 {[%clk 0:00:03.6]} 67... Kg5 {[%clk
0:01:09.7]} 68. Kg3 {[%clk 0:00:04.5]} 68... f4+ {[%clk 0:01:09.4]} 69. Kg2
{[%clk 0:00:05.4]} 69... Ng6 {[%clk 0:01:09.4]} 70. Be4 {[%clk 0:00:05.3]} 70...
Nh4+ {[%clk 0:01:09.4]} 71. Kf2 {[%clk 0:00:05.6]} 71... g3+ {[%clk 0:01:08]}
72. Ke2 {[%clk 0:00:04.7]} 72... Kg4 {[%clk 0:01:07.8]} 73. Kf1 {[%clk
0:00:04.7]} 73... f3 {[%clk 0:01:06.8]} 74. Kg1 {[%clk 0:00:04.4]} 74... Kf4
{[%clk 0:01:06.5]} 75. Bc6 {[%clk 0:00:04.1]} 75... e4 {[%clk 0:01:06.4]} 76.
Bb5 {[%clk 0:00:03.5]} 76... e3 {[%clk 0:01:06.2]} 77. Bd3 {[%clk 0:00:01.9]}
77... e2 {[%clk 0:01:04.9]} 78. Bxe2 {[%clk 0:00:02.4]} 78... fxe2 {[%clk
0:01:04.8]} 79. Kh1 {[%clk 0:00:03.3]} 79... e1=N {[%clk 0:01:02.6]} 80. Kg1
{[%clk 0:00:03]} 80... Nd3 {[%clk 0:01:02.3]} 81. Kh1 {[%clk 0:00:03]} 81... Ne5
{[%clk 0:01:02.6]} 82. Kg1 {[%clk 0:00:03]} 82... Kg4 {[%clk 0:01:02.8]} 83. Kh1
{[%clk 0:00:02.9]} 83... Kh3 {[%clk 0:01:01.8]} 84. Kg1 {[%clk 0:00:03.2]} 84...
g2 {[%clk 0:01:01.7]} 85. Kf2 {[%clk 0:00:03.2]} 85... Kh2 {[%clk 0:01:01.7]}
86. Ke3 {[%clk 0:00:03.1]} 86... g1=N {[%clk 0:01:00.8]} 87. Ke4 {[%clk
0:00:03.5]} 87... Ngf3 {[%clk 0:01:00.5]} 88. Kf4 {[%clk 0:00:04.2]} 88... Kg2
{[%clk 0:00:58.9]} 89. Ke3 {[%clk 0:00:03.9]} 89... Kg3 {[%clk 0:00:58.2]} 90.
Ke4 {[%clk 0:00:04.1]} 90... Nhg6 {[%clk 0:00:53.5]} 91. Kf5 {[%clk 0:00:04.3]}
91... Kh4 {[%clk 0:00:51.6]} 92. Ke4 {[%clk 0:00:04]} 92... Kg4 {[%clk 0:00:52]}
93. Ke3 {[%clk 0:00:04.6]} 93... Kf5 {[%clk 0:00:51.1]} 94. Ke2 {[%clk
0:00:02.8]} 94... Ke4 {[%clk 0:00:49.9]} 95. Kf2 {[%clk 0:00:02]} 95... Nf4
{[%clk 0:00:47.5]} 96. Kg3 {[%clk 0:00:02.4]} 96... Ne2+ {[%clk 0:00:47]} 97.
Kh3 {[%clk 0:00:02.2]} 97... Kf4 {[%clk 0:00:41.9]} 98. Kg2 {[%clk 0:00:01.9]}
98... Ng4 {[%clk 0:00:40.6]} 99. Kh1 {[%clk 0:00:01.8]} 99... Ng3+ {[%clk
0:00:37.8]} 100. Kg2 {[%clk 0:00:02.2]} 100... Ne3+ {[%clk 0:00:34.8]} 101. Kh3
{[%clk 0:00:02.3]} 101... Ng1+ {[%clk 0:00:20.9]} 102. Kh2 {[%clk 0:00:02]}
102... N1e2 {[%clk 0:00:16.4]} 103. Kh3 {[%clk 0:00:02.4]} 103... Nef5 {[%clk
0:00:16.7]} 104. Kg2 {[%clk 0:00:02.4]} 104... Ke3 {[%clk 0:00:15]} 105. Kh3
{[%clk 0:00:02.6]} 105... Kf3 {[%clk 0:00:15.2]} 106. Kh2 {[%clk 0:00:02.4]}
106... Nf4 {[%clk 0:00:14.6]} 107. Kg1 {[%clk 0:00:02.4]} 107... Ne3 {[%clk
0:00:14.8]} 108. Kh2 {[%clk 0:00:01.9]} 108... Ng4+ {[%clk 0:00:10.3]} 109. Kg1
{[%clk 0:00:02.4]} 109... Nh3# {[%clk 0:00:08.4]} 0-1